[Event "Titled Tuesday Blitz August 08 Early 2023"]
[White "LuxLinster"]
[Black "Mitrovic, Darko R"]
[BlackFideId "927023"]
[WhiteElo "2270"]
[BlackElo "2131"]
[Result "0-1"]
[Round "9"]
[TimeControl "180+1"]
[Date "2023.08.08"]
[WhiteClock "0:00:00"]
[BlackClock "0:00:10"]
[Board "174"]

1. d4 {[%clk 0:03:00]}  e6 {[%clk 0:03:00]} 2. c4 {[%clk 0:03:01]}  Nf6 {[%clk 0:03:00]} 3. g3 {[%clk 0:03:01]}  Bb4+ {[%clk 0:02:59]} 4. Bd2 {[%clk 0:03:01]}  Bxd2+ {[%clk 0:02:59]} 5. Qxd2 {[%clk 0:03:01]}  O-O {[%clk 0:02:56]} 6. Bg2 {[%clk 0:03:01]}  d6 {[%clk 0:02:56]} 7. e4 {[%clk 0:02:59]}  e5 {[%clk 0:02:55]} 8. Ne2 {[%clk 0:02:59]}  c5 {[%clk 0:02:49]} 9. d5 {[%clk 0:02:51]}  Nh5 {[%clk 0:02:32]} 10. h3 {[%clk 0:02:42]}  g6 {[%clk 0:02:25]} 11. Nbc3 {[%clk 0:02:30]}  a6 {[%clk 0:02:08]} 12. g4 {[%clk 0:02:22]}  Ng7 {[%clk 0:01:59]} 13. Ng3 {[%clk 0:02:01]}  b5 {[%clk 0:01:48]} 14. cxb5 {[%clk 0:01:55]}  axb5 {[%clk 0:01:48]} 15. Nxb5 {[%clk 0:01:55]}  Ba6 {[%clk 0:01:46]} 16. Nc3 {[%clk 0:01:53]}  Nd7 {[%clk 0:01:43]} 17. Bf1 {[%clk 0:01:38]}  Bxf1 {[%clk 0:01:40]} 18. Kxf1 {[%clk 0:01:39]}  f5 {[%clk 0:01:36]} 19. gxf5 {[%clk 0:01:28]}  gxf5 {[%clk 0:01:36]} 20. Rg1 {[%clk 0:01:14]}  Kh8 {[%clk 0:01:14]} 21. Qh6 {[%clk 0:00:59]}  Rf6 {[%clk 0:00:58]} 22. Qg5 {[%clk 0:00:55]}  Qf8 {[%clk 0:00:56]} 23. Re1 {[%clk 0:00:26]}  Qf7 {[%clk 0:00:48]} 24. a3 {[%clk 0:00:16]}  Rf8 {[%clk 0:00:46]} 25. Re2 {[%clk 0:00:12]}  Rg6 {[%clk 0:00:34]} 26. Qd2 {[%clk 0:00:10]}  f4 {[%clk 0:00:27]} 27. Nh1 {[%clk 0:00:09]}  Rxg1+ {[%clk 0:00:20]} 28. Kxg1 {[%clk 0:00:10]}  Qg6+ {[%clk 0:00:20]} 29. Kf1 {[%clk 0:00:07]}  f3 {[%clk 0:00:20]} 30. Ng3 {[%clk 0:00:03]}  fxe2+ {[%clk 0:00:19]} 31. Kxe2 {[%clk 0:00:04]}  Nf6 {[%clk 0:00:17]} 32. Qe3 {[%clk 0:00:04]}  Nfh5 {[%clk 0:00:16]} 33. Kd2 {[%clk 0:00:04]}  Nxg3 {[%clk 0:00:14]} 34. fxg3 {[%clk 0:00:04]}  Nh5 {[%clk 0:00:14]} 35. g4 {[%clk 0:00:03]}  Nf4 {[%clk 0:00:13]} 36. a4 {[%clk 0:00:00]}  Qh6 {[%clk 0:00:10]} 0-1


[Site "https://www.chess.com"]

[Event "Titled Tuesday Blitz August 08 Early 2023"]
[White "McLaren, Brian"]
[Black "Novikova, Margarita"]
[WhiteFideId "2604612"]
[BlackFideId "14109689"]
[WhiteElo "2259"]
[BlackElo "2116"]
[Result "0-1"]
[Round "9"]
[TimeControl "180+1"]
[Date "2023.08.08"]
[WhiteClock "0:01:46"]
[BlackClock "0:01:31"]
[Board "175"]

1. g3 {[%clk 0:03:00]}  g6 {[%clk 0:02:56]} 2. Bg2 {[%clk 0:03:00]}  Bg7 {[%clk 0:02:57]} 3. e4 {[%clk 0:03:00]}  Nf6 {[%clk 0:02:58]} 4. Ne2 {[%clk 0:03:00]}  d6 {[%clk 0:02:58]} 5. O-O {[%clk 0:03:00]}  O-O {[%clk 0:02:58]} 6. d4 {[%clk 0:03:00]}  e5 {[%clk 0:02:55]} 7. Nbc3 {[%clk 0:02:59]}  Nbd7 {[%clk 0:02:53]} 8. h3 {[%clk 0:02:58]}  a5 {[%clk 0:02:52]} 9. Be3 {[%clk 0:02:57]}  b6 {[%clk 0:02:51]} 10. Qd2 {[%clk 0:02:56]}  Re8 {[%clk 0:02:50]} 11. Rfe1 {[%clk 0:02:54]}  Bb7 {[%clk 0:02:48]} 12. dxe5 {[%clk 0:02:50]}  Nxe5 {[%clk 0:02:47]} 13. b3 {[%clk 0:02:50]}  Ned7 {[%clk 0:02:42]} 14. Bg5 {[%clk 0:02:42]}  Qc8 {[%clk 0:02:37]} 15. f3 {[%clk 0:02:40]}  Nc5 {[%clk 0:02:27]} 16. Rad1 {[%clk 0:02:37]}  Ne6 {[%clk 0:02:26]} 17. Be3 {[%clk 0:02:33]}  Bc6 {[%clk 0:02:15]} 18. Nd5 {[%clk 0:02:30]}  Qb7 {[%clk 0:02:14]} 19. c4 {[%clk 0:02:28]}  Rad8 {[%clk 0:01:58]} 20. Nd4 {[%clk 0:02:25]}  Nxd4 {[%clk 0:01:58]} 21. Bxd4 {[%clk 0:02:25]}  Bxd5 {[%clk 0:01:57]} 22. exd5 {[%clk 0:02:20]}  Nh5 {[%clk 0:01:54]} 23. Bf2 {[%clk 0:02:17]}  a4 {[%clk 0:01:48]} 24. f4 {[%clk 0:02:13]}  axb3 {[%clk 0:01:44]} 25. axb3 {[%clk 0:02:12]}  Nf6 {[%clk 0:01:37]} 26. Rxe8+ {[%clk 0:02:11]}  Rxe8 {[%clk 0:01:36]} 27. Re1 {[%clk 0:02:12]}  Ra8 {[%clk 0:01:35]} 28. g4 {[%clk 0:02:08]}  Nd7 {[%clk 0:01:33]} 29. h4 {[%clk 0:01:59]}  Nc5 {[%clk 0:01:33]} 30. b4 {[%clk 0:01:57]}  Nb3 {[%clk 0:01:31]} 31. Re4 {[%clk 0:01:46]}  Nxd2 {[%clk 0:01:31]} 0-1


[Site "https://www.chess.com"]

[Event "Titled Tuesday Blitz August 08 Early 2023"]
[White "Semenova, Alina"]
[Black "Sarkar, Justin"]
[WhiteFideId "24113875"]
[BlackFideId "2010011"]
[WhiteElo "2089"]
[BlackElo "2233"]
[Result "1-0"]
[Round "9"]
[TimeControl "180+1"]
[Date "2023.08.08"]
[WhiteClock "0:02:01"]
[BlackClock "0:00:00"]
[Board "176"]

1. e4 {[%clk 0:03:00]}  e5 {[%clk 0:02:49]} 2. Nf3 {[%clk 0:03:00]}  Nc6 {[%clk 0:02:48]} 3. c3 {[%clk 0:03:00]}  d5 {[%clk 0:02:43]} 4. Qa4 {[%clk 0:02:59]}  dxe4 {[%clk 0:02:13]} 5. Nxe5 {[%clk 0:02:57]}  Qd5 {[%clk 0:02:09]} 6. Nxc6 {[%clk 0:02:56]}  bxc6 {[%clk 0:02:00]} 7. Bc4 {[%clk 0:02:55]}  Qc5 {[%clk 0:01:37]} 8. O-O {[%clk 0:02:52]}  Nf6 {[%clk 0:01:28]} 9. d4 {[%clk 0:02:52]}  Qb6 {[%clk 0:01:04]} 10. Re1 {[%clk 0:02:46]}  Be7 {[%clk 0:00:58]} 11. Nd2 {[%clk 0:02:31]}  Bf5 {[%clk 0:00:47]} 12. f3 {[%clk 0:02:15]}  exf3 {[%clk 0:00:16]} 13. Nxf3 {[%clk 0:02:16]}  Kf8 {[%clk 0:00:03]} 14. Ne5 {[%clk 0:02:06]}  Re8 {[%clk 0:00:00]} 15. Nxf7 {[%clk 0:02:01]} 1-0


[Site "https://www.chess.com"]

[Event "Titled Tuesday Blitz August 08 Early 2023"]
[White "Nikulina, Alena"]
[Black "Kula, Robert"]
[WhiteFideId "4172051"]
[BlackFideId "1101218"]
[WhiteElo "2058"]
[BlackElo "2226"]
[Result "0-1"]
[Round "9"]
[TimeControl "180+1"]
[Date "2023.08.08"]
[WhiteClock "0:00:08"]
[BlackClock "0:00:44"]
[Board "179"]

1. e4 {[%clk 0:03:00]}  e5 {[%clk 0:02:59]} 2. Nf3 {[%clk 0:03:00]}  Nc6 {[%clk 0:02:59]} 3. Bb5 {[%clk 0:02:54]}  a6 {[%clk 0:02:57]} 4. Ba4 {[%clk 0:02:52]}  Nf6 {[%clk 0:02:57]} 5. O-O {[%clk 0:02:49]}  b5 {[%clk 0:02:56]} 6. Bb3 {[%clk 0:02:47]}  Be7 {[%clk 0:02:56]} 7. Re1 {[%clk 0:02:42]}  O-O {[%clk 0:02:55]} 8. c3 {[%clk 0:02:42]}  d6 {[%clk 0:02:55]} 9. d3 {[%clk 0:02:41]}  Na5 {[%clk 0:02:55]} 10. Bc2 {[%clk 0:02:41]}  c5 {[%clk 0:02:56]} 11. Nbd2 {[%clk 0:02:41]}  Rb8 {[%clk 0:02:39]} 12. Nf1 {[%clk 0:02:37]}  Bg4 {[%clk 0:02:34]} 13. h3 {[%clk 0:02:36]}  Bh5 {[%clk 0:02:33]} 14. g4 {[%clk 0:02:36]}  Bg6 {[%clk 0:02:33]} 15. Ng3 {[%clk 0:02:37]}  b4 {[%clk 0:02:32]} 16. Nf5 {[%clk 0:02:34]}  Re8 {[%clk 0:02:31]} 17. Ba4 {[%clk 0:02:01]}  Rf8 {[%clk 0:02:12]} 18. N3h4 {[%clk 0:01:55]}  Nd7 {[%clk 0:01:59]} 19. Nxe7+ {[%clk 0:01:42]}  Qxe7 {[%clk 0:01:58]} 20. Nf5 {[%clk 0:01:40]}  Bxf5 {[%clk 0:01:57]} 21. gxf5 {[%clk 0:01:40]}  Nb6 {[%clk 0:01:55]} 22. Bc2 {[%clk 0:01:40]}  bxc3 {[%clk 0:01:53]} 23. bxc3 {[%clk 0:01:39]}  f6 {[%clk 0:01:45]} 24. Kh2 {[%clk 0:01:39]}  Kh8 {[%clk 0:01:44]} 25. Rg1 {[%clk 0:01:35]}  d5 {[%clk 0:01:44]} 26. Ba3 {[%clk 0:01:17]}  dxe4 {[%clk 0:01:42]} 27. dxe4 {[%clk 0:01:16]}  Nbc4 {[%clk 0:01:40]} 28. Bc1 {[%clk 0:01:07]}  Qf7 {[%clk 0:01:25]} 29. Bb3 {[%clk 0:01:01]}  Rfd8 {[%clk 0:01:21]} 30. Qg4 {[%clk 0:00:55]}  Nxb3 {[%clk 0:01:16]} 31. axb3 {[%clk 0:00:55]}  Rxb3 {[%clk 0:01:16]} 32. Rxa6 {[%clk 0:00:54]}  Rxc3 {[%clk 0:01:15]} 33. Rc6 {[%clk 0:00:33]}  Rc2 {[%clk 0:01:10]} 34. Qg3 {[%clk 0:00:25]}  Nd6 {[%clk 0:01:03]} 35. Ba3 {[%clk 0:00:21]}  Nxe4 {[%clk 0:01:00]} 36. Qe3 {[%clk 0:00:17]}  Rxf2+ {[%clk 0:00:59]} 37. Kh1 {[%clk 0:00:16]}  Qd5 {[%clk 0:00:46]} 38. Rc7 {[%clk 0:00:08]}  Ng3# {[%clk 0:00:44]} 0-1


[Site "https://www.chess.com"]

[Event "Titled Tuesday Blitz August 08 Early 2023"]
[White "cthake"]
[Black "campochess"]
[WhiteElo "1828"]
[BlackElo "2194"]
[Result "1-0"]
[Round "9"]
[TimeControl "180+1"]
[Date "2023.08.08"]
[WhiteClock "0:00:21"]
[BlackClock "0:00:36"]
[Board "183"]

1. e4 {[%clk 0:03:00]}  c5 {[%clk 0:02:59]} 2. Nc3 {[%clk 0:02:59]}  Nc6 {[%clk 0:02:58]} 3. f4 {[%clk 0:02:58]}  e6 {[%clk 0:02:57]} 4. Nf3 {[%clk 0:02:58]}  Nf6 {[%clk 0:02:57]} 5. Bb5 {[%clk 0:02:51]}  Nd4 {[%clk 0:02:54]} 6. Be2 {[%clk 0:02:19]}  a6 {[%clk 0:02:42]} 7. d3 {[%clk 0:02:16]}  d6 {[%clk 0:02:41]} 8. O-O {[%clk 0:02:16]}  Nxe2+ {[%clk 0:02:41]} 9. Qxe2 {[%clk 0:02:15]}  Be7 {[%clk 0:02:41]} 10. a4 {[%clk 0:02:10]}  O-O {[%clk 0:02:40]} 11. h3 {[%clk 0:02:09]}  Nd7 {[%clk 0:02:39]} 12. Be3 {[%clk 0:02:03]}  b6 {[%clk 0:02:39]} 13. Qf2 {[%clk 0:02:02]}  Bb7 {[%clk 0:02:38]} 14. Rad1 {[%clk 0:01:53]}  f5 {[%clk 0:02:36]} 15. e5 {[%clk 0:01:48]}  d5 {[%clk 0:02:33]} 16. d4 {[%clk 0:01:47]}  c4 {[%clk 0:02:32]} 17. Ng5 {[%clk 0:01:43]}  Bxg5 {[%clk 0:02:26]} 18. fxg5 {[%clk 0:01:43]}  Rf7 {[%clk 0:02:21]} 19. Ne2 {[%clk 0:01:39]}  Nf8 {[%clk 0:02:21]} 20. h4 {[%clk 0:01:35]}  Bc6 {[%clk 0:02:19]} 21. b3 {[%clk 0:01:29]}  b5 {[%clk 0:02:17]} 22. axb5 {[%clk 0:01:26]}  axb5 {[%clk 0:02:17]} 23. Ra1 {[%clk 0:01:21]}  Rfa7 {[%clk 0:02:12]} 24. Rxa7 {[%clk 0:01:19]}  Rxa7 {[%clk 0:02:12]} 25. bxc4 {[%clk 0:01:19]}  dxc4 {[%clk 0:02:08]} 26. d5 {[%clk 0:01:19]}  Rc7 {[%clk 0:01:51]} 27. dxc6 {[%clk 0:01:18]}  Rxc6 {[%clk 0:01:51]} 28. Nd4 {[%clk 0:01:18]}  Ra6 {[%clk 0:01:48]} 29. Nxb5 {[%clk 0:01:17]}  Qd5 {[%clk 0:01:48]} 30. Nc7 {[%clk 0:01:11]}  Qc6 {[%clk 0:01:48]} 31. Nxa6 {[%clk 0:01:11]}  Qxa6 {[%clk 0:01:48]} 32. Bc5 {[%clk 0:01:10]}  Ng6 {[%clk 0:01:47]} 33. Bd4 {[%clk 0:01:08]}  Qc6 {[%clk 0:01:42]} 34. c3 {[%clk 0:01:06]}  Qe4 {[%clk 0:01:40]} 35. Qf3 {[%clk 0:01:03]}  Qxh4 {[%clk 0:01:38]} 36. Qa8+ {[%clk 0:01:02]}  Kf7 {[%clk 0:01:35]} 37. Ra1 {[%clk 0:01:02]}  Nf4 {[%clk 0:01:33]} 38. Ra7+ {[%clk 0:00:58]}  Kg6 {[%clk 0:01:33]} 39. Qe8+ {[%clk 0:00:58]}  Kxg5 {[%clk 0:01:32]} 40. Rxg7+ {[%clk 0:00:56]}  Kh6 {[%clk 0:01:24]} 41. Qe7 {[%clk 0:00:31]}  Qxe7 {[%clk 0:01:03]} 42. Rxe7 {[%clk 0:00:30]}  Kg6 {[%clk 0:01:03]} 43. Kf2 {[%clk 0:00:29]}  Nd3+ {[%clk 0:01:02]} 44. Ke3 {[%clk 0:00:27]}  Ne1 {[%clk 0:00:59]} 45. Rxe6+ {[%clk 0:00:27]}  Kg5 {[%clk 0:00:57]} 46. g3 {[%clk 0:00:25]}  Nc2+ {[%clk 0:00:54]} 47. Kd2 {[%clk 0:00:24]}  Na3 {[%clk 0:00:54]} 48. Re7 {[%clk 0:00:24]}  h5 {[%clk 0:00:51]} 49. Rb7 {[%clk 0:00:23]}  Kg4 {[%clk 0:00:48]} 50. e6 {[%clk 0:00:23]}  Kxg3 {[%clk 0:00:45]} 51. e7 {[%clk 0:00:23]}  f4 {[%clk 0:00:45]} 52. e8=Q {[%clk 0:00:23]}  h4 {[%clk 0:00:45]} 53. Qg6+ {[%clk 0:00:23]}  Kf3 {[%clk 0:00:43]} 54. Qh5+ {[%clk 0:00:23]}  Ke4 {[%clk 0:00:43]} 55. Qe2+ {[%clk 0:00:22]}  Kf5 {[%clk 0:00:42]} 56. Rf7+ {[%clk 0:00:22]}  Kg6 {[%clk 0:00:41]} 57. Qe6+ {[%clk 0:00:22]}  Kg5 {[%clk 0:00:40]} 58. Qf5+ {[%clk 0:00:20]}  Kh6 {[%clk 0:00:39]} 59. Qxf4+ {[%clk 0:00:20]}  Kg6 {[%clk 0:00:38]} 60. Rf6+ {[%clk 0:00:20]}  Kh7 {[%clk 0:00:37]} 61. Qxh4+ {[%clk 0:00:20]}  Kg8 {[%clk 0:00:36]} 62. Qg5+ {[%clk 0:00:21]}  Kh7 {[%clk 0:00:36]} 63. Rh6# {[%clk 0:00:21]} 1-0


[Site "https://www.chess.com"]

[Event "Titled Tuesday Blitz August 08 Early 2023"]
[White "Samarth J Rao"]
[Black "Stangl, Anita, Dr."]
[WhiteFideId "46652370"]
[BlackFideId "4608801"]
[WhiteElo "2158"]
[BlackElo "2102"]
[Result "1-0"]
[Round "9"]
[TimeControl "180+1"]
[Date "2023.08.08"]
[WhiteClock "0:00:37"]
[BlackClock "0:01:13"]
[Board "184"]

1. d4 {[%clk 0:02:58]}  e6 {[%clk 0:02:58]} 2. e3 {[%clk 0:02:53]}  d5 {[%clk 0:02:57]} 3. Bd3 {[%clk 0:02:53]}  c6 {[%clk 0:02:55]} 4. f4 {[%clk 0:02:50]}  Nf6 {[%clk 0:02:53]} 5. Nd2 {[%clk 0:02:50]}  Nbd7 {[%clk 0:02:51]} 6. Ngf3 {[%clk 0:02:50]}  Bd6 {[%clk 0:02:51]} 7. O-O {[%clk 0:02:49]}  Ng4 {[%clk 0:02:46]} 8. Qe2 {[%clk 0:02:46]}  f5 {[%clk 0:02:45]} 9. Ng5 {[%clk 0:02:39]}  Qf6 {[%clk 0:02:40]} 10. h3 {[%clk 0:02:33]}  Nh6 {[%clk 0:02:36]} 11. c4 {[%clk 0:02:29]}  Nf7 {[%clk 0:02:30]} 12. Nxf7 {[%clk 0:02:20]}  Qxf7 {[%clk 0:02:29]} 13. cxd5 {[%clk 0:02:21]}  exd5 {[%clk 0:02:28]} 14. Nf3 {[%clk 0:02:18]}  Nf6 {[%clk 0:02:26]} 15. Ne5 {[%clk 0:02:13]}  Qh5 {[%clk 0:02:12]} 16. Qxh5+ {[%clk 0:02:09]}  Nxh5 {[%clk 0:02:12]} 17. Bd2 {[%clk 0:02:04]}  Ng3 {[%clk 0:02:12]} 18. Rf3 {[%clk 0:02:01]}  Ne4 {[%clk 0:02:12]} 19. Bxe4 {[%clk 0:01:58]}  fxe4 {[%clk 0:02:10]} 20. Rg3 {[%clk 0:01:59]}  O-O {[%clk 0:02:09]} 21. a3 {[%clk 0:01:54]}  Bf5 {[%clk 0:02:08]} 22. Bb4 {[%clk 0:01:50]}  Rf6 {[%clk 0:02:03]} 23. Bxd6 {[%clk 0:01:47]}  Rxd6 {[%clk 0:02:03]} 24. b4 {[%clk 0:01:43]}  a5 {[%clk 0:02:02]} 25. Rb1 {[%clk 0:01:22]}  axb4 {[%clk 0:01:59]} 26. Rxb4 {[%clk 0:01:23]}  b5 {[%clk 0:01:58]} 27. Rb3 {[%clk 0:01:19]}  Ra4 {[%clk 0:01:57]} 28. Rc3 {[%clk 0:01:17]}  Bd7 {[%clk 0:01:53]} 29. Nxd7 {[%clk 0:01:15]}  Rxd7 {[%clk 0:01:53]} 30. Rxc6 {[%clk 0:01:14]}  Rxa3 {[%clk 0:01:52]} 31. Rb6 {[%clk 0:01:14]}  Ra5 {[%clk 0:01:48]} 32. f5 {[%clk 0:01:11]}  Rf7 {[%clk 0:01:43]} 33. f6 {[%clk 0:01:10]}  g6 {[%clk 0:01:44]} 34. Rg5 {[%clk 0:01:05]}  Ra1+ {[%clk 0:01:43]} 35. Kh2 {[%clk 0:01:03]}  Rf1 {[%clk 0:01:42]} 36. Rxd5 {[%clk 0:00:49]}  R1xf6 {[%clk 0:01:39]} 37. Rxf6 {[%clk 0:00:45]}  Rxf6 {[%clk 0:01:39]} 38. Rxb5 {[%clk 0:00:46]}  Re6 {[%clk 0:01:38]} 39. Re5 {[%clk 0:00:44]}  Rxe5 {[%clk 0:01:27]} 40. dxe5 {[%clk 0:00:45]}  Kf7 {[%clk 0:01:28]} 41. Kg3 {[%clk 0:00:43]}  Ke6 {[%clk 0:01:28]} 42. Kf4 {[%clk 0:00:43]}  Kd5 {[%clk 0:01:28]} 43. g4 {[%clk 0:00:41]}  h6 {[%clk 0:01:27]} 44. h4 {[%clk 0:00:38]}  h5 {[%clk 0:01:26]} 45. g5 {[%clk 0:00:35]}  Ke6 {[%clk 0:01:21]} 46. Kxe4 {[%clk 0:00:36]}  Ke7 {[%clk 0:01:21]} 47. Kd5 {[%clk 0:00:37]}  Kd7 {[%clk 0:01:21]} 48. e6+ {[%clk 0:00:37]}  Ke7 {[%clk 0:01:21]} 49. Ke5 {[%clk 0:00:37]}  Kf8 {[%clk 0:01:18]} 50. Kf6 {[%clk 0:00:38]}  Ke8 {[%clk 0:01:19]} 51. e7 {[%clk 0:00:36]}  Kd7 {[%clk 0:01:13]} 52. Kf7 {[%clk 0:00:37]} 1-0


[Site "https://www.chess.com"]

[Event "Titled Tuesday Blitz August 08 Early 2023"]
[White "Seifert, Henryk"]
[Black "Floresvillar Gonzalez, Luis Migu"]
[WhiteFideId "1100963"]
[BlackFideId "5100542"]
[WhiteElo "2048"]
[BlackElo "2136"]
[Result "0-1"]
[Round "9"]
[TimeControl "180+1"]
[Date "2023.08.08"]
[WhiteClock "0:00:00"]
[BlackClock "0:00:41"]
[Board "186"]

1. e4 {[%clk 0:02:59]}  c6 {[%clk 0:02:57]} 2. d4 {[%clk 0:02:57]}  d5 {[%clk 0:02:58]} 3. exd5 {[%clk 0:02:57]}  cxd5 {[%clk 0:02:57]} 4. Bd3 {[%clk 0:02:58]}  Nf6 {[%clk 0:02:53]} 5. c3 {[%clk 0:02:57]}  Nc6 {[%clk 0:02:48]} 6. Bf4 {[%clk 0:02:56]}  Qb6 {[%clk 0:02:42]} 7. Qb3 {[%clk 0:02:52]}  Qxb3 {[%clk 0:02:41]} 8. axb3 {[%clk 0:02:52]}  Bg4 {[%clk 0:02:30]} 9. b4 {[%clk 0:02:50]}  e6 {[%clk 0:02:06]} 10. Nd2 {[%clk 0:02:49]}  Be7 {[%clk 0:01:58]} 11. Ngf3 {[%clk 0:02:46]}  Bxf3 {[%clk 0:01:56]} 12. Nxf3 {[%clk 0:02:46]}  Ne4 {[%clk 0:01:55]} 13. b5 {[%clk 0:02:38]}  Nd8 {[%clk 0:01:53]} 14. Nd2 {[%clk 0:02:17]}  f5 {[%clk 0:01:48]} 15. Nf3 {[%clk 0:02:02]}  Bd6 {[%clk 0:01:46]} 16. Bxd6 {[%clk 0:01:42]}  Nxd6 {[%clk 0:01:45]} 17. O-O {[%clk 0:01:40]}  N8f7 {[%clk 0:01:43]} 18. Ne5 {[%clk 0:01:31]}  Nxe5 {[%clk 0:01:42]} 19. dxe5 {[%clk 0:01:32]}  Ne4 {[%clk 0:01:40]} 20. f3 {[%clk 0:01:27]}  Nc5 {[%clk 0:01:37]} 21. Bc2 {[%clk 0:01:17]}  Ke7 {[%clk 0:01:35]} 22. g4 {[%clk 0:00:56]}  f4 {[%clk 0:01:22]} 23. h4 {[%clk 0:00:51]}  h6 {[%clk 0:01:21]} 24. Bg6 {[%clk 0:00:44]}  Rhd8 {[%clk 0:01:00]} 25. Rad1 {[%clk 0:00:41]}  a6 {[%clk 0:00:54]} 26. bxa6 {[%clk 0:00:35]}  Rxa6 {[%clk 0:00:53]} 27. Rd4 {[%clk 0:00:34]}  Rb6 {[%clk 0:00:52]} 28. b4 {[%clk 0:00:31]}  Nd7 {[%clk 0:00:49]} 29. Re1 {[%clk 0:00:15]}  Rf8 {[%clk 0:00:48]} 30. Rd3 {[%clk 0:00:08]}  Rc6 {[%clk 0:00:47]} 31. Kg2 {[%clk 0:00:06]}  Rc4 {[%clk 0:00:47]} 32. Ra1 {[%clk 0:00:03]}  Rfc8 {[%clk 0:00:43]} 33. Ra3 {[%clk 0:00:00]}  Nxe5 {[%clk 0:00:41]} 0-1


[Site "https://www.chess.com"]

[Event "Titled Tuesday Blitz August 08 Early 2023"]
[White "Martinez Alcantara, Jose Eduardo"]
[Black "Carlsen, Magnus"]
[WhiteFideId "3805662"]
[BlackFideId "1503014"]
[WhiteElo "3055"]
[BlackElo "3244"]
[Result "0-1"]
[Round "10"]
[TimeControl "180+1"]
[Date "2023.08.08"]
[WhiteClock "0:00:00"]
[BlackClock "0:00:29"]
[Board "1"]

1. e4 {[%clk 0:03:00]}  c5 {[%clk 0:02:59]} 2. Nf3 {[%clk 0:03:00]}  Nc6 {[%clk 0:02:59]} 3. c3 {[%clk 0:02:59]}  e5 {[%clk 0:02:58]} 4. Bc4 {[%clk 0:02:53]}  Nf6 {[%clk 0:02:57]} 5. d3 {[%clk 0:02:54]}  Be7 {[%clk 0:02:57]} 6. Bg5 {[%clk 0:02:54]}  O-O {[%clk 0:02:56]} 7. Nbd2 {[%clk 0:02:54]}  d6 {[%clk 0:02:56]} 8. a4 {[%clk 0:02:54]}  Nd7 {[%clk 0:02:56]} 9. Be3 {[%clk 0:02:48]}  Kh8 {[%clk 0:02:55]} 10. O-O {[%clk 0:02:45]}  Nb6 {[%clk 0:02:51]} 11. d4 {[%clk 0:02:40]}  Nxc4 {[%clk 0:02:49]} 12. Nxc4 {[%clk 0:02:41]}  exd4 {[%clk 0:02:45]} 13. cxd4 {[%clk 0:02:42]}  d5 {[%clk 0:02:37]} 14. exd5 {[%clk 0:02:29]}  Qxd5 {[%clk 0:02:38]} 15. Rc1 {[%clk 0:02:25]}  cxd4 {[%clk 0:02:36]} 16. Nxd4 {[%clk 0:02:26]}  Nxd4 {[%clk 0:02:36]} 17. Bxd4 {[%clk 0:02:20]}  Rd8 {[%clk 0:02:33]} 18. Qe2 {[%clk 0:02:07]}  Qxd4 {[%clk 0:02:07]} 19. Qxe7 {[%clk 0:01:54]}  Be6 {[%clk 0:02:07]} 20. b3 {[%clk 0:01:46]}  Rd7 {[%clk 0:02:07]} 21. Qg5 {[%clk 0:01:42]}  h6 {[%clk 0:02:07]} 22. Qg3 {[%clk 0:01:39]}  Rad8 {[%clk 0:02:02]} 23. h3 {[%clk 0:01:39]}  Kg8 {[%clk 0:01:57]} 24. Rfe1 {[%clk 0:01:35]}  Qf6 {[%clk 0:01:56]} 25. Ne5 {[%clk 0:01:33]}  Re7 {[%clk 0:01:45]} 26. Re3 {[%clk 0:01:31]}  Qg5 {[%clk 0:01:38]} 27. Qxg5 {[%clk 0:00:54]}  hxg5 {[%clk 0:01:39]} 28. Rce1 {[%clk 0:00:54]}  Rc7 {[%clk 0:01:35]} 29. Nf3 {[%clk 0:00:52]}  Rd5 {[%clk 0:01:33]} 30. b4 {[%clk 0:00:48]}  Rc4 {[%clk 0:01:28]} 31. Re4 {[%clk 0:00:47]}  Rxe4 {[%clk 0:01:27]} 32. Rxe4 {[%clk 0:00:48]}  Kf8 {[%clk 0:01:26]} 33. a5 {[%clk 0:00:44]}  Rd1+ {[%clk 0:01:21]} 34. Kh2 {[%clk 0:00:44]}  Bd5 {[%clk 0:01:21]} 35. Re3 {[%clk 0:00:39]}  f6 {[%clk 0:01:21]} 36. Rc3 {[%clk 0:00:37]}  Rb1 {[%clk 0:01:21]} 37. Nd4 {[%clk 0:00:31]}  Rxb4 {[%clk 0:01:19]} 38. Rc8+ {[%clk 0:00:31]}  Kf7 {[%clk 0:01:15]} 39. Nf5 {[%clk 0:00:32]}  g6 {[%clk 0:01:14]} 40. Rc7+ {[%clk 0:00:31]}  Ke6 {[%clk 0:01:13]} 41. Ne3 {[%clk 0:00:26]}  a6 {[%clk 0:01:10]} 42. Rg7 {[%clk 0:00:25]}  Bc6 {[%clk 0:00:59]} 43. Rxg6 {[%clk 0:00:23]}  Rb5 {[%clk 0:00:59]} 44. Ng4 {[%clk 0:00:23]}  Rf5 {[%clk 0:01:00]} 45. Rh6 {[%clk 0:00:19]}  Kf7 {[%clk 0:01:00]} 46. f3 {[%clk 0:00:19]}  Kg7 {[%clk 0:01:00]} 47. h4 {[%clk 0:00:18]}  gxh4 {[%clk 0:01:00]} 48. Rxh4 {[%clk 0:00:18]}  Rxa5 {[%clk 0:01:00]} 49. Ne3 {[%clk 0:00:19]}  Re5 {[%clk 0:01:00]} 50. Nc4 {[%clk 0:00:18]}  Rc5 {[%clk 0:01:00]} 51. Nd6 {[%clk 0:00:18]}  a5 {[%clk 0:00:58]} 52. Rd4 {[%clk 0:00:18]}  Rd5 {[%clk 0:00:52]} 53. Rg4+ {[%clk 0:00:19]}  Kf8 {[%clk 0:00:52]} 54. Nc4 {[%clk 0:00:16]}  a4 {[%clk 0:00:49]} 55. Rh4 {[%clk 0:00:15]}  b5 {[%clk 0:00:45]} 56. Na5 {[%clk 0:00:15]}  Be8 {[%clk 0:00:41]} 57. Rh8+ {[%clk 0:00:12]}  Ke7 {[%clk 0:00:42]} 58. Rh7+ {[%clk 0:00:13]}  Ke6 {[%clk 0:00:39]} 59. Ra7 {[%clk 0:00:14]}  Kd6 {[%clk 0:00:34]} 60. Ra8 {[%clk 0:00:13]}  Bd7 {[%clk 0:00:33]} 61. Nb7+ {[%clk 0:00:12]}  Kc7 {[%clk 0:00:33]} 62. Nd8 {[%clk 0:00:00]}  b4 {[%clk 0:00:29]} 0-1


[Site "https://www.chess.com"]